bitfinex/quotes_BTCUSD_20250219
["timestamp","ask_amount","ask_price","bid_price","bid_amount"]
[1739934675806,0.274664,95986.0,95985.0,0.02]
[1739934676238,0.29100477,95986.0,95985.0,0.02]
[1739934681641,0.27070577,95986.0,95985.0,0.0666]
[1739934682507,0.01834077,95986.0,95985.0,0.0666]
[1739934682715,0.12070577,95986.0,95985.0,0.0666]
[1739934683146,0.01834077,95986.0,95985.0,0.0666]
[1739934683556,0.12815,95986.0,95985.0,0.0666]
[1739934684449,0.27815,95986.0,95985.0,0.0666]
[1739934684672,0.152,95986.0,95985.0,0.0666]
[1739934684892,1.11002,95986.0,95985.0,0.0666]
[1739934689552,1.11002,95986.0,95985.0,0.0670252]
[1739934694502,0.896234,95986.0,95985.0,0.0670252]
[1739934699994,0.60765279,95986.0,95985.0,0.0670252]
[1739934701732,0.0008508,95987.0,95985.0,0.0670252]
[1739934702145,1.031457,95986.0,95985.0,0.0670252]
[1739934702648,1.181457,95986.0,95985.0,0.0670252]
[1739934703383,1.183457,95986.0,95985.0,0.0670252]
[1739934710628,1.183457,95986.0,95985.0,0.0004252]
[1739934711684,1.181457,95986.0,95985.0,0.0004252]
[1739934712180,1.183457,95986.0,95985.0,0.0004252]
[1739934713035,1.181457,95986.0,95985.0,0.0004252]
[1739934713235,1.1843078,95986.0,95985.0,0.0004252]
[1739934714377,1.1823078,95986.0,95985.0,0.0004252]
[1739934714738,1.1863078,95986.0,95985.0,0.0004252]
[1739934715360,1.1883078,95986.0,95985.0,0.0004252]
[1739934715562,1.1823078,95986.0,95985.0,0.0004252]
[1739934715988,1.1863078,95986.0,95985.0,0.0004252]
[1739934716400,1.1823078,95986.0,95985.0,0.0004252]
[1739934717501,1.1843078,95986.0,95985.0,0.0004252]
[1739934717671,0.1528508,95986.0,95985.0,0.0004252]
[1739934717874,1.1823078,95986.0,95985.0,0.0004252]
[1739934718074,1.1863078,95986.0,95985.0,0.0004252]
[1739934719077,1.1823078,95986.0,95985.0,0.0004252]
[1739934719279,1.1843078,95986.0,95985.0,0.0004252]
[1739934721513,1.1883078,95986.0,95985.0,0.0004252]
[1739934721744,1.1823078,95986.0,95985.0,0.0004252]
[1739934721912,1.1843078,95986.0,95985.0,0.0004252]
[1739934722137,1.1823078,95986.0,95985.0,0.0004252]
[1739934722529,1.1853078,95986.0,95985.0,0.0004252]
[1739934725185,1.1823078,95986.0,95985.0,0.0004252]
[1739934725600,1.1843078,95986.0,95985.0,0.0004252]
[1739934726090,1.1873078,95986.0,95985.0,0.0004252]
[1739934726283,1.1853078,95986.0,95985.0,0.0004252]
[1739934726604,1.1873078,95986.0,95985.0,0.0004252]
[1739934726832,1.1823078,95986.0,95985.0,0.0004252]
[1739934727293,1.1853078,95986.0,95985.0,0.0004252]
[1739934728408,0.6867568,95986.0,95985.0,0.0004252]
[1739934728676,0.5713528,95986.0,95985.0,0.0467252]
[1739934728906,0.33843117,95986.0,95985.0,0.0004252]
[1739934730761,0.33843117,95986.0,95976.0,0.0481]
[1739934730762,0.002,95986.0,95976.0,0.0481]
[1739934730980,1.28581777,95986.0,95973.0,0.0775]
[1739934731268,0.15,95984.0,95973.0,0.0775]
[1739934731704,0.15,95982.0,95973.0,0.0775]
[1739934731930,0.15,95982.0,95969.0,0.26580522]
[1739934731931,0.15,95980.0,95969.0,0.26580522]
[1739934732158,0.15,95978.0,95967.0,0.081]
[1739934732376,0.15,95976.0,95967.0,0.081]
[1739934732613,0.15,95974.0,95967.0,0.081]
[1739934732854,0.15,95972.0,95967.0,0.081]
[1739934733082,0.15,95970.0,95966.0,0.0488]
[1739934733311,1.092667,95969.0,95966.0,0.0488]
[1739934734888,1.092667,95969.0,95968.0,0.00154802]
[1739934743681,1.092667,95969.0,95968.0,0.00054802]
[1739934743898,1.11284328,95969.0,95968.0,0.00054802]
[1739934744176,1.11964333,95969.0,95968.0,0.00054802]
[1739934744349,1.092667,95969.0,95968.0,0.00054802]
[1739934745117,1.094667,95969.0,95968.0,0.00054802]
[1739934745373,1.092667,95969.0,95968.0,0.00054802]
[1739934745619,1.096667,95969.0,95968.0,0.00054802]
[1739934745854,1.19917065,95969.0,95968.0,0.00054802]
[1739934746806,1.19917065,95969.0,95956.0,0.0004254]
[1739934746807,0.001,95964.0,95956.0,0.0004254]
[1739934747037,0.15,95962.0,95956.0,0.00055596]
[1739934747275,0.15,95960.0,95956.0,0.00055596]
[1739934747519,0.15,95945.0,95929.0,0.0781]
[1739934747767,0.0199997,95956.0,95929.0,0.0781]
[1739934747768,0.15,95938.0,95929.0,0.0781]
[1739934748013,0.15,95936.0,95929.0,0.0781]
[1739934748236,0.15,95934.0,95929.0,0.0781]
[1739934748479,0.15,95932.0,95929.0,0.0781]
[1739934748717,0.15,95930.0,95929.0,0.0781]
[1739934748944,1.092667,95930.0,95929.0,0.0781]
[1739934749487,1.092667,95930.0,95925.0,0.00043555]
[1739934749488,1.19517065,95930.0,95925.0,0.00043555]
[1739934749716,0.15,95928.0,95925.0,0.00043555]
[1739934749941,0.15,95926.0,95925.0,0.00043555]
[1739934750199,1.092667,95926.0,95925.0,0.00043555]
[1739934751635,1.11684392,95926.0,95925.0,0.00043555]
[1739934752041,1.092667,95926.0,95925.0,0.00043555]
[1739934752503,1.11256088,95926.0,95925.0,0.00043555]
[1739934753881,1.11956088,95926.0,95925.0,0.00043555]
[1739934754354,1.11256088,95926.0,95925.0,0.00043555]
[1739934754580,1.11956088,95926.0,95925.0,0.00043555]
[1739934754803,1.11256088,95926.0,95925.0,0.00043555]
[1739934755260,1.11956088,95926.0,95925.0,0.00043555]
[1739934755475,1.092667,95926.0,95925.0,0.00043555]
[1739934755885,1.099667,95926.0,95925.0,0.00043555]
[1739934756712,1.20217065,95926.0,95925.0,0.00043555]
[1739934758062,0.94034465,95926.0,95925.0,0.00043555]
[1739934758275,0.837841,95926.0,95925.0,0.00043555]
[1739934760338,0.987841,95926.0,95925.0,0.00086105]
[1739934760552,0.980841,95926.0,95925.0,0.00086105]
[1739934760779,0.987841,95926.0,95925.0,0.00086105]
[1739934760994,0.987841,95926.0,95925.0,0.08306105]
[1739934761231,0.691756,95926.0,95925.0,0.08306105]
[1739934762092,0.684756,95926.0,95925.0,0.08306105]
[1739934762515,0.689756,95926.0,95925.0,0.08306105]
[1739934763841,0.684756,95926.0,95925.0,0.08306105]
[1739934763953,0.689756,95926.0,95925.0,0.08306105]
[1739934764439,0.684756,95926.0,95925.0,0.08306105]
[1739934764633,0.689756,95926.0,95925.0,0.08306105]
[1739934767079,0.689756,95926.0,95925.0,0.09140975]
[1739934767360,0.689756,95926.0,95925.0,0.13116105]
[1739934768066,0.534756,95926.0,95925.0,0.13116105]
[1739934768306,0.153,95926.0,95925.0,0.13116105]
[1739934768530,0.684756,95926.0,95925.0,0.13116105]
[1739934769466,0.686756,95926.0,95925.0,0.13116105]
[1739934770796,0.684756,95926.0,95925.0,0.13116105]
[1739934771002,0.686756,95926.0,95925.0,0.13116105]
[1739934771229,0.684756,95926.0,95925.0,0.13116105]
[1739934771629,0.686756,95926.0,95925.0,0.13116105]
[1739934771858,0.684756,95926.0,95925.0,0.13116105]
[1739934772304,0.685756,95926.0,95925.0,0.13116105]
[1739934773468,0.6866072,95926.0,95925.0,0.13116105]
[1739934773666,0.6856072,95926.0,95925.0,0.13116105]
[1739934774113,0.6866072,95926.0,95925.0,0.13116105]
[1739934778299,0.6856072,95926.0,95925.0,0.13116105]
[1739934778507,0.6876072,95926.0,95925.0,0.13116105]
[1739934779801,0.6856072,95926.0,95925.0,0.13116105]
[1739934780715,0.6876072,95926.0,95925.0,0.13116105]
[1739934780951,0.68535701,95926.0,95925.0,0.13116105]
[1739934781418,0.68735701,95926.0,95925.0,0.13116105]
[1739934782135,1.18735701,95926.0,95925.0,0.13116105]
[1739934783497,1.18535701,95926.0,95925.0,0.13116105]
[1739934783731,1.18735701,95926.0,95925.0,0.13116105]
[1739934783966,1.18535701,95926.0,95925.0,0.13116105]
[1739934784412,1.18735701,95926.0,95925.0,0.13116105]
[1739934784954,1.18535701,95926.0,95925.0,0.13116105]
[1739934785448,1.18735701,95926.0,95925.0,0.13116105]
[1739934787124,1.18535701,95926.0,95925.0,0.13116105]
[1739934787326,0.65360101,95926.0,95925.0,0.13116105]
[1739934787528,1.18835701,95926.0,95925.0,0.13116105]
[1739934787769,1.18535701,95926.0,95925.0,0.13116105]
[1739934787967,1.18835701,95926.0,95925.0,0.13116105]
[1739934788409,1.18535701,95926.0,95925.0,0.13116105]
[1739934788619,1.18735701,95926.0,95925.0,0.13116105]
[1739934795774,1.18535701,95926.0,95925.0,0.13116105]
[1739934796419,0.93849568,95926.0,95925.0,0.13116105]
[1739934797016,0.94049568,95926.0,95925.0,0.13116105]
[1739934797713,1.03675568,95926.0,95925.0,0.13116105]
[1739934798893,1.18475568,95926.0,95925.0,0.13116105]
[1739934800387,1.18575568,95926.0,95925.0,0.13116105]
[1739934803902,1.18457837,95926.0,95925.0,0.13116105]
[1739934805240,1.18575537,95926.0,95925.0,0.00086105]
[1739934805456,0.15,95925.0,95915.0,0.0004255]
[1739934805694,0.68519171,95925.0,95915.0,0.0004255]
[1739934806730,0.68619171,95925.0,95915.0,0.0004255]
[1739934809193,0.15143571,95925.0,95915.0,0.0004255]
[1739934809394,0.68619171,95925.0,95915.0,0.0004255]
[1739934809989,0.15,95923.0,95915.0,0.0004255]
[1739934810210,0.15,95921.0,95915.0,0.0004255]
[1739934810424,0.15,95919.0,95915.0,0.0004255]
[1739934810641,0.15,95917.0,95915.0,0.0004255]
[1739934810918,0.684756,95917.0,95915.0,0.0004255]
[1739934816654,0.686756,95917.0,95915.0,0.0004255]
[1739934816855,0.684756,95917.0,95915.0,0.0004255]
[1739934817156,0.686756,95917.0,95915.0,0.0004255]
[1739934817975,0.686756,95917.0,95916.0,0.0490258]
[1739934818367,0.62051,95917.0,95916.0,0.0490258]
[1739934818579,0.539307,95917.0,95916.0,0.1246258]
[1739934819851,0.537307,95917.0,95916.0,0.1246258]
[1739934820202,0.539307,95917.0,95916.0,0.1246258]
[1739934820410,0.537307,95917.0,95916.0,0.1246258]
[1739934820786,0.539307,95917.0,95916.0,0.1246258]
[1739934822638,0.537307,95917.0,95916.0,0.1246258]
[1739934822852,0.538307,95917.0,95916.0,0.1246258]
[1739934825657,0.30202308,95917.0,95916.0,0.1246258]
[1739934826929,0.001,95917.0,95916.0,0.15917093]
[1739934827166,0.000851,95924.0,95923.0,0.1466]
[1739934827379,0.000851,95924.0,95923.0,0.1456]
[1739934827987,0.000851,95924.0,95923.0,0.1446]
[1739934828220,0.000851,95924.0,95923.0,0.16055709]
[1739934830228,0.000851,95924.0,95923.0,0.16155709]
[1739934831290,0.000851,95924.0,95923.0,0.1460255]
[1739934833057,0.150851,95924.0,95923.0,0.41183072]
[1739934838454,0.443989,95924.0,95923.0,0.41183072]
[1739934840120,0.443989,95924.0,95923.0,0.39383072]
[1739934840275,0.443138,95924.0,95923.0,0.39383072]
[1739934840633,0.434309,95924.0,95923.0,0.26723072]
[1739934841145,0.433309,95924.0,95923.0,0.26723072]
[1739934841546,0.433309,95924.0,95923.0,0.26623072]
[1739934842070,0.933309,95924.0,95923.0,0.26623072]
[1739934842283,0.640171,95924.0,95923.0,0.26623072]
[1739934842484,1.088644,95924.0,95923.0,0.26623072]
[1739934842841,0.79873183,95924.0,95923.0,0.26723072]
[1739934843055,0.79873183,95924.0,95923.0,0.26623072]
[1739934843461,0.79958283,95924.0,95923.0,0.26623072]
[1739934843709,0.80358283,95924.0,95923.0,0.26623072]
[1739934843911,0.95332383,95924.0,95923.0,0.26623072]
[1739934844336,0.94932383,95924.0,95923.0,0.26623072]
[1739934844711,0.95332383,95924.0,95923.0,0.26623072]
[1739934845115,1.10332383,95924.0,95923.0,0.0004255]
[1739934845910,1.09932383,95924.0,95923.0,0.0004255]
[1739934846318,1.10332383,95924.0,95923.0,0.0004255]
[1739934846674,1.09932383,95924.0,95923.0,0.0004255]
[1739934846887,1.10332383,95924.0,95923.0,0.0004255]
[1739934850969,1.20582748,95924.0,95923.0,0.0004255]
[1739934852289,1.10332383,95924.0,95923.0,0.0004255]
[1739934853134,1.09932383,95924.0,95923.0,0.0004255]
[1739934853487,1.12632353,95924.0,95923.0,0.0004255]
[1739934853723,1.11932353,95924.0,95923.0,0.0004255]
[1739934854247,1.12632353,95924.0,95923.0,0.0004255]
[1739934854485,1.22182718,95924.0,95923.0,0.0004255]
[1739934854658,0.15,95923.0,95916.0,0.0004258]
[1739934854995,0.598473,95923.0,95916.0,0.0004258]
[1739934855245,0.15,95921.0,95916.0,0.0004258]
[1739934855437,0.15,95919.0,95916.0,0.0004258]
[1739934855743,0.15,95917.0,95916.0,0.0004258]
[1739934855989,0.598473,95917.0,95916.0,0.0004258]
[1739934856763,0.007,95919.0,95916.0,0.0004258]
[1739934856961,0.15,95917.0,95916.0,0.0004258]
[1739934857167,0.598473,95917.0,95916.0,0.0004258]
[1739934857389,0.605473,95917.0,95916.0,0.0004258]
[1739934857604,0.606473,95917.0,95916.0,0.0004258]
[1739934859270,0.599473,95917.0,95916.0,0.0004258]
[1739934859913,0.62011685,95917.0,95916.0,0.0004258]
[1739934860115,0.62711685,95917.0,95916.0,0.0004258]
[1739934860484,0.62611685,95917.0,95916.0,0.0004258]
[1739934860686,0.6933336,95917.0,95916.0,0.0004258]
[1739934861646,0.62611685,95917.0,95916.0,0.0004258]
[1739934865361,0.61911685,95917.0,95916.0,0.0004258]
[1739934866182,0.62611685,95917.0,95916.0,0.0004258]
[1739934867411,0.17764385,95917.0,95916.0,0.0004258]
[1739934867648,0.62611685,95917.0,95916.0,0.0004258]
[1739934870699,0.455473,95917.0,95916.0,0.0764258]
[1739934871081,0.36825358,95917.0,95916.0,0.0764258]
[1739934871281,0.368254,95917.0,95916.0,0.0764258]
[1739934871944,0.375254,95917.0,95916.0,0.0764258]
[1739934872150,0.368254,95917.0,95916.0,0.0764258]
[1739934872573,0.372254,95917.0,95916.0,0.0764258]
[1739934874227,0.372254,95917.0,95916.0,0.08888093]
[1739934874773,0.368254,95917.0,95916.0,0.0764258]
[1739934875131,0.371254,95917.0,95916.0,0.0764258]
[1739934875338,0.368254,95917.0,95916.0,0.0764258]
[1739934876380,0.111694,95917.0,95916.0,0.0764258]
[1739934876926,0.111694,95917.0,95916.0,0.0741018]
[1739934877127,0.111694,95917.0,95916.0,0.0717778]
[1739934877328,0.111694,95917.0,95916.0,0.0737778]
[1739934877646,0.111694,95917.0,95916.0,0.0742033]
[1739934877855,0.112545,95917.0,95916.0,0.0742033]
[1739934878667,0.112545,95917.0,95916.0,0.0722033]
[1739934884781,0.000851,95917.0,95916.0,0.0722033]
[1739934885002,0.150851,95917.0,95916.0,0.0722033]
[1739934885198,0.262545,95917.0,95916.0,0.0722033]
[1739934887933,0.17746674,95926.0,95916.0,0.0722033]
[1739934888129,0.17751027,95926.0,95916.0,0.0722033]
[1739934888336,2.081749,95925.0,95916.0,0.0722033]
[1739934888763,0.02091212,95924.0,95916.0,0.0722033]
[1739934888969,1.55525,95923.0,95916.0,0.0722033]
[1739934890115,0.15,95922.0,95916.0,0.0722033]
[1739934890319,0.510806,95922.0,95916.0,0.0722033]
[1739934890562,0.15,95920.0,95916.0,0.0722033]
[1739934890741,0.15,95918.0,95916.0,0.0722033]
[1739934890949,0.590415,95917.0,95916.0,0.0722033]
[1739934891080,0.579265,95917.0,95916.0,0.0722033]
[1739934891698,0.361473,95917.0,95916.0,0.0722033]
[1739934891947,0.150851,95917.0,95916.0,0.0722033]
[1739934892477,0.283941,95917.0,95916.0,0.0722033]
[1739934897361,0.283941,95917.0,95916.0,0.07195938]
[1739934904658,0.285941,95917.0,95916.0,0.07195938]
[1739934904868,0.283941,95917.0,95916.0,0.07195938]
[1739934905323,0.285941,95917.0,95916.0,0.07195938]
[1739934906039,0.285941,95917.0,95916.0,0.0683294]
[1739934906488,0.15,95916.0,95899.0,0.07921424]
[1739934906699,0.06114359,95909.0,95899.0,0.0642327]
[1739934907198,0.15,95908.0,95899.0,0.0642327]
[1739934907663,0.15,95906.0,95899.0,0.0642327]
[1739934907899,0.15,95906.0,95899.0,0.05585824]
[1739934909152,0.15,95908.0,95900.0,0.0813]
[1739934909327,2.584345,95908.0,95900.0,0.0813]
[1739934909530,0.15,95906.0,95900.0,0.0813]
[1739934909756,0.15,95904.0,95902.0,0.0813]
[1739934910777,0.15,95908.0,95902.0,0.0813]
[1739934910971,0.15,95906.0,95902.0,0.0833]
[1739934911324,0.15,95904.0,95902.0,0.0833]
[1739934911991,0.15,95904.0,95902.0,0.0813]
[1739934913137,0.15,95908.0,95902.0,0.0823]
[1739934913334,0.15,95908.0,95902.0,0.0813]
[1739934913764,0.15,95908.0,95902.0,0.0833]
[1739934913979,0.15,95908.0,95902.0,0.0813]
[1739934914411,0.15,95908.0,95902.0,0.0823]
[1739934914617,0.15,95908.0,95902.0,0.0827255]
[1739934915656,0.15,95906.0,95902.0,0.0827255]
[1739934915838,0.15,95904.0,95902.0,0.0827255]
[1739934916060,1.428111,95903.0,95902.0,0.0827255]
[1739934916247,0.15,95903.0,95902.0,0.0827255]
[1739934916673,0.15,95903.0,95902.0,0.0817255]
[1739934917072,1.416014,95903.0,95902.0,0.0837255]
[1739934917266,1.398014,95903.0,95902.0,0.0817255]
[1739934917672,1.398014,95903.0,95902.0,0.0837255]
[1739934917879,0.492062,95903.0,95902.0,0.0837255]
[1739934918110,0.15,95903.0,95902.0,0.0837255]
[1739934926484,0.15,95903.0,95902.0,0.0024255]
[1739934927509,3.119205,95903.0,95902.0,0.0004255]
[1739934927723,2.269587,95903.0,95902.0,0.0004255]
[1739934928379,2.271587,95903.0,95902.0,0.0004255]
[1739934928805,2.218845,95903.0,95902.0,0.0004255]
[1739934929015,1.886524,95903.0,95902.0,0.0004255]
[1739934929561,1.871097,95903.0,95902.0,0.0004255]
[1739934929762,1.317725,95903.0,95902.0,0.0004255]
[1739934929960,1.286358,95903.0,95902.0,0.0004255]
[1739934930428,1.18967,95903.0,95902.0,0.0004255]
[1739934935218,0.91935162,95903.0,95902.0,0.0004255]
[1739934936768,0.91935162,95903.0,95899.0,0.0004256]
[1739934936769,0.94626336,95903.0,95899.0,0.0004256]
[1739934936984,0.18343077,95899.0,95860.0,0.0004255]
[1739934937208,0.18343077,95894.0,95884.0,0.01159364]
[1739934937411,5.081682,95893.0,95884.0,0.01159364]
[1739934937627,0.15,95891.0,95884.0,0.01159364]
[1739934937773,0.15,95889.0,95884.0,0.01159364]
[1739934937986,0.15,95887.0,95884.0,0.01159364]
[1739934938195,0.18343077,95894.0,95884.0,0.01159364]
[1739934938196,0.15,95885.0,95884.0,0.01159364]
[1739934938559,3.7156435,95885.0,95884.0,0.01259364]
[1739934938785,3.6657855,95885.0,95884.0,0.01159364]
[1739934939229,3.4633795,95885.0,95884.0,0.01159364]
[1739934939464,4.35e-05,95885.0,95884.0,0.01159364]
[1739934939688,0.1500435,95885.0,95884.0,0.01259364]
[1739934940489,2.9459385,95885.0,95884.0,0.01259364]
[1739934940724,1.5426455,95885.0,95884.0,0.01259364]
[1739934940922,0.8834785,95885.0,95884.0,0.01159364]
[1739934941098,0.8874785,95885.0,95884.0,0.01159364]
[1739934941331,0.1540435,95885.0,95884.0,0.01159364]
[1739934941929,0.8278025,95885.0,95884.0,0.01159364]
[1739934942292,0.8318025,95885.0,95884.0,0.01159364]
[1739934942615,0.8278025,95885.0,95884.0,0.01159364]
[1739934942862,0.8093045,95885.0,95884.0,0.01159364]
[1739934943071,0.2694865,95885.0,95884.0,0.01159364]
[1739934944608,0.2704865,95885.0,95884.0,0.01159364]
[1739934948188,0.1510435,95885.0,95884.0,0.08819364]
[1739934949253,0.1510435,95885.0,95884.0,0.13479364]
[1739934950072,0.1510435,95885.0,95884.0,0.13521934]
[1739934950271,0.1518949,95885.0,95884.0,0.13521934]
[1739934954690,0.1508949,95885.0,95884.0,0.13521934]
[1739934955137,0.1508949,95885.0,95884.0,0.13621934]
[1739934955350,0.1508949,95885.0,95884.0,0.13521934]
[1739934956729,0.1508949,95885.0,95884.0,0.13621934]
[1739934959507,0.11969017,95894.0,95885.0,0.0786]
[1739934959716,0.11969017,95894.0,95886.0,0.09242193]
[1739934961429,0.12069017,95894.0,95886.0,0.09242193]
[1739934961645,0.15,95893.0,95886.0,0.09242193]
[1739934962924,0.15,95893.0,95886.0,0.0786]
[1739934963558,0.151,95893.0,95886.0,0.0786]
[1739934967273,0.001,95893.0,95886.0,0.0786]
[1739934968754,0.15,95891.0,95886.0,0.0786]
[1739934968970,0.001,95893.0,95886.0,0.0786]
[1739934969172,0.15,95891.0,95886.0,0.0786]
[1739934970408,0.000851,95894.0,95886.0,0.0786]
[1739934970607,0.001,95891.0,95886.0,0.0786]
[1739934972571,0.82663,95890.0,95886.0,0.0786]
[1739934973187,0.82663,95890.0,95884.0,0.01215054]
[1739934973598,1.342191,95893.0,95884.0,0.01215054]
[1739934973808,1.127814,95892.0,95884.0,0.01215054]
[1739934974035,1.279394,95893.0,95884.0,0.01215054]
[1739934974228,1.311524,95893.0,95884.0,0.01215054]
[1739934975071,1.311524,95893.0,95886.0,0.0004255]
[1739934975978,0.151,95892.0,95886.0,0.0004255]
[1739934976196,0.15,95890.0,95886.0,0.0004255]
[1739934976417,0.15,95888.0,95886.0,0.0004255]
[1739934976649,2.272754,95887.0,95886.0,0.0004255]
[1739934977260,2.19106,95887.0,95886.0,0.0004255]
[1739934978582,0.15,95886.0,95884.0,0.00906192]
[1739934978819,2.198804,95886.0,95884.0,0.00906192]
[1739934979310,2.099676,95885.0,95884.0,0.00906192]
[1739934979531,1.973293,95885.0,95884.0,0.00906192]
[1739934979683,2.265955,95886.0,95884.0,0.00906192]
[1739934979902,2.124499,95885.0,95884.0,0.00906192]
[1739934980125,2.12408,95886.0,95884.0,0.00906192]
[1739934980440,1.907348,95885.0,95884.0,0.00906192]
[1739934980652,1.897146,95885.0,95884.0,0.00906192]
[1739934980864,1.900146,95885.0,95884.0,0.00906192]
[1739934981080,2.05021,95885.0,95884.0,0.00906192]
[1739934981300,2.060412,95885.0,95884.0,0.00906192]
[1739934981515,1.922901,95885.0,95884.0,0.00906192]
[1739934982078,1.919901,95885.0,95884.0,0.00906192]
[1739934982310,0.15,95885.0,95884.0,0.00906192]
[1739934982656,2.359214,95885.0,95884.0,0.00906192]
[1739934983081,2.362214,95885.0,95884.0,0.00906192]
[1739934985244,2.359214,95885.0,95884.0,0.00906192]
[1739934985585,2.362214,95885.0,95884.0,0.00906192]
[1739934985792,2.359214,95885.0,95884.0,0.00906192]
[1739934986222,2.362214,95885.0,95884.0,0.00906192]
[1739934986880,1.827689,95885.0,95884.0,0.00906192]
[1739934987087,1.15603,95885.0,95884.0,0.00906192]
[1739934987339,1.040791,95885.0,95884.0,0.00906192]
[1739934987746,0.510013,95885.0,95884.0,0.00906192]
[1739934989035,0.02045666,95887.0,95884.0,0.00906192]
[1739934989258,0.003,95885.0,95884.0,0.00906192]
[1739934989444,0.125668,95885.0,95884.0,0.00906192]
[1739934989665,0.15,95885.0,95884.0,0.00906192]
[1739934989895,0.816703,95885.0,95884.0,0.00906192]
[1739934990098,0.813703,95885.0,95884.0,0.00906192]
[1739934990785,0.7055,95885.0,95884.0,0.00906192]
[1739934991024,0.298733,95885.0,95884.0,0.00906192]
[1739934991264,0.000851,95894.0,95884.0,0.09016192]
[1739934991495,0.15,95892.0,95884.0,0.09016192]
[1739934991735,0.15,95890.0,95884.0,0.09016192]
[1739934991970,0.003,95885.0,95884.0,0.09016192]
[1739934992858,0.01635697,95892.0,95884.0,0.09016192]
[1739934993171,0.482665,95891.0,95884.0,0.09016192]
[1739934993306,0.02077115,95889.0,95884.0,0.09016192]
[1739934993487,0.274392,95888.0,95884.0,0.09016192]
[1739934993719,0.001,95885.0,95884.0,0.09016192]
[1739934995116,0.000851,95894.0,95884.0,0.09016192]
[1739934995343,0.003,95891.0,95884.0,0.09016192]
[1739934995556,0.406208,95890.0,95884.0,0.09016192]
[1739934995900,0.001,95885.0,95884.0,0.09016192]
[1739934996316,0.01635693,95889.0,95884.0,0.09016192]
[1739934996532,0.15,95887.0,95884.0,0.07380508]
[1739934997193,0.02107164,95885.0,95884.0,0.07380508]
[1739934998211,0.02207164,95885.0,95884.0,0.07380508]
[1739934999376,0.02207164,95885.0,95884.0,0.07423058]
[1739934999563,0.001,95885.0,95884.0,0.07423058]
[1739934999732,0.01820796,95885.0,95884.0,0.07423058]
[1739935000842,0.01820796,95885.0,95884.0,0.07020648]
[1739935001044,0.65407596,95885.0,95884.0,0.07020648]
[1739935001246,0.86398396,95885.0,95884.0,0.07020648]
[1739935001700,0.81199396,95885.0,95884.0,0.07020648]
[1739935001936,0.794637,95885.0,95884.0,0.07020648]
[1739935002141,0.797637,95885.0,95884.0,0.07020648]
[1739935004527,0.944637,95885.0,95884.0,0.07020648]
[1739935004768,0.946637,95885.0,95884.0,0.07020648]
[1739935006865,0.946637,95885.0,95884.0,0.05385007]
[1739935007570,0.944637,95885.0,95884.0,0.0004255]
[1739935008025,0.946637,95885.0,95884.0,0.0004255]
[1739935009173,0.944637,95885.0,95884.0,0.0004255]
[1739935009558,0.946637,95885.0,95884.0,0.0004255]
[1739935012219,0.96299451,95885.0,95884.0,0.0004255]
[1739935013385,0.946637,95885.0,95884.0,0.0004255]
[1739935016222,0.96299497,95885.0,95884.0,0.0004255]
[1739935020512,0.8379058,95885.0,95877.0,0.0004255]
[1739935020727,0.023,95883.0,95877.0,0.00086121]
[1739935020935,2.649686,95882.0,95877.0,0.00086121]
[1739935021145,2.628083,95881.0,95877.0,0.00086121]
[1739935021361,0.023,95880.0,95877.0,0.00086121]
[1739935021575,2.823431,95879.0,95877.0,0.00086121]
[1739935022204,0.15,95878.0,95877.0,0.00086121]
[1739935022413,3.37623,95878.0,95877.0,0.00086121]
[1739935022628,2.027683,95878.0,95877.0,0.00086121]
[1739935022836,0.636826,95878.0,95877.0,0.08396121]
[1739935024772,0.641826,95878.0,95877.0,0.08396121]
[1739935025341,0.641826,95878.0,95877.0,0.00086121]
[1739935025871,0.7385137,95878.0,95877.0,0.00086121]
[1739935026278,0.75487374,95878.0,95877.0,0.00086121]
[1739935027292,0.75487374,95878.0,95863.0,0.12433469]
[1739935027446,0.18343077,95873.0,95863.0,0.12446594]
[1739935027691,2.851804,95872.0,95863.0,0.12446594]
[1739935028065,2.546632,95871.0,95863.0,0.12446594]
[1739935028272,2.814561,95872.0,95863.0,0.12446594]
[1739935028561,2.827561,95872.0,95863.0,0.12446594]
[1739935028775,2.464415,95871.0,95863.0,0.12446594]
[1739935028994,2.726966,95872.0,95863.0,0.12446594]
[1739935029203,0.15,95869.0,95863.0,0.12446594]
[1739935029404,0.15,95867.0,95863.0,0.12446594]
[1739935029883,0.15,95865.0,95863.0,0.12446594]
[1739935030095,0.886409,95864.0,95863.0,0.12446594]
[1739935030301,0.860215,95864.0,95863.0,0.12446594]
[1739935031233,0.780889,95864.0,95863.0,0.12446594]
[1739935031935,0.781889,95864.0,95863.0,0.12446594]
[1739935033464,0.771687,95864.0,95863.0,0.12446594]
[1739935033917,0.771687,95864.0,95863.0,0.12489144]
[1739935035789,0.718245,95864.0,95863.0,0.12489144]
[1739935037756,0.73460603,95864.0,95863.0,0.12489144]
[1739935040548,0.73460603,95864.0,95863.0,0.00055675]
[1739935042936,0.718245,95864.0,95863.0,0.00055675]
[1739935044830,0.151,95864.0,95863.0,0.00055675]
[1739935045942,0.16736146,95864.0,95863.0,0.00055675]
[1739935046163,0.151,95864.0,95863.0,0.00055675]
[1739935046347,0.151,95864.0,95863.0,0.12585675]
[1739935046558,0.16736125,95864.0,95863.0,0.12585675]
[1739935047582,0.16636125,95864.0,95863.0,0.12585675]
[1739935047991,0.01636125,95864.0,95863.0,0.12585675]
[1739935048919,0.01721245,95864.0,95863.0,0.12585675]
[1739935053378,0.0008512,95864.0,95863.0,0.12585675]
[1739935055765,0.12257622,95873.0,95864.0,0.0809]
[1739935055953,0.12257622,95873.0,95865.0,0.01282822]
[1739935056158,0.01635896,95871.0,95866.0,0.0809]
[1739935056880,0.01635896,95871.0,95867.0,0.0486]
[1739935057027,0.01635896,95871.0,95868.0,0.0809]
[1739935060264,0.01721016,95871.0,95868.0,0.0809]
[1739935061917,0.01721016,95871.0,95869.0,0.08374464]
[1739935062131,0.01721016,95871.0,95870.0,0.14648444]
[1739935062577,0.01721016,95871.0,95864.0,0.08374464]
[1739935063436,0.01721016,95871.0,95865.0,0.00104298]
[1739935063741,0.01821016,95871.0,95865.0,0.00104298]
[1739935063953,0.01721016,95871.0,95865.0,0.00104298]
[1739935064092,0.01721016,95871.0,95866.0,0.03601348]
[1739935064093,0.01821016,95871.0,95866.0,0.03601348]
[1739935064290,0.01821016,95871.0,95867.0,0.00104298]